[Event "Open Nuevo Centro. Jornada 2"]
[Site "Chess.com"]
[Date "2020.06.26"]
[Round "7"]
[White "Cebolla Ruiz, David"]
[Black "Valero Martinez, Óscar"]
[Result "1-0"]
[WhiteElo "1575"]
[BlackElo "1161"]
[TimeControl "180+2"]
[EndTime "11:46:59 PDT"]
[Termination "Victoria de Dabelcebolla por jaque mate"]

1. e4 {[%clk 0:03:01.9]} 1... e5 {[%clk 0:02:58.3]} 2. Nf3 {[%clk 0:03:00.4]}
2... Nc6 {[%clk 0:02:58.8]} 3. Bb5 {[%clk 0:03:01]} 3... Nf6 {[%clk 0:02:48.8]}
4. Bxc6 {[%clk 0:02:59.8]} 4... bxc6 {[%clk 0:02:42.5]} 5. O-O {[%clk
0:03:00.1]} 5... d5 {[%clk 0:02:36.3]} 6. Nxe5 {[%clk 0:02:52.9]} 6... Nxe4
{[%clk 0:02:24.9]} 7. Nxc6 {[%clk 0:02:49.9]} 7... Qf6 {[%clk 0:02:20.3]} 8. Na5
{[%clk 0:02:39.9]} 8... Ba6 {[%clk 0:02:10.8]} 9. d3 {[%clk 0:02:37.7]} 9... Bc5
{[%clk 0:01:58.2]} 10. Be3 {[%clk 0:02:24.2]} 10... Bd4 {[%clk 0:01:38.1]} 11.
Bxd4 {[%clk 0:02:23.7]} 11... Qxd4 {[%clk 0:01:35]} 12. c3 {[%clk 0:02:21.5]}
12... Qb6 {[%clk 0:01:34.5]} 13. Nb3 {[%clk 0:02:18.9]} 13... Nc5 {[%clk
0:01:24]} 14. Nxc5 {[%clk 0:02:18.8]} 14... Qxc5 {[%clk 0:01:18.1]} 15. Re1+
{[%clk 0:02:18.7]} 15... Kf8 {[%clk 0:01:12.7]} 16. Qa4 {[%clk 0:01:59.6]} 16...
Bb5 {[%clk 0:01:05.9]} 17. Qb4 {[%clk 0:01:58]} 17... Qxb4 {[%clk 0:00:59.9]}
18. cxb4 {[%clk 0:01:58.8]} 18... Bxd3 {[%clk 0:01:00.9]} 19. Nc3 {[%clk
0:01:59.5]} 19... Kg8 {[%clk 0:00:55.6]} 20. Re7 {[%clk 0:01:58.9]} 20... Rc8
{[%clk 0:00:47.5]} 21. Nxd5 {[%clk 0:01:58.1]} 21... Rd8 {[%clk 0:00:42.8]} 22.
Nxc7 {[%clk 0:01:55.5]} 22... Bc4 {[%clk 0:00:36.4]} 23. Re8+ {[%clk 0:01:55.1]}
23... Rxe8 {[%clk 0:00:33.8]} 24. Nxe8 {[%clk 0:01:55.8]} 24... h6 {[%clk
0:00:33.6]} 25. Nd6 {[%clk 0:01:55.4]} 25... Bd5 {[%clk 0:00:30.5]} 26. Rc1
{[%clk 0:01:54.8]} 26... Kh7 {[%clk 0:00:30.5]} 27. a3 {[%clk 0:01:51.5]} 27...
Rd8 {[%clk 0:00:30]} 28. Nb5 {[%clk 0:01:49.3]} 28... Re8 {[%clk 0:00:27.2]} 29.
Nc3 {[%clk 0:01:46.9]} 29... Bc4 {[%clk 0:00:26.8]} 30. h3 {[%clk 0:01:46.9]}
30... Re5 {[%clk 0:00:23.4]} 31. Rd1 {[%clk 0:01:41.3]} 31... Be2 {[%clk
0:00:18.4]} 32. Nxe2 {[%clk 0:01:41]} 32... Rxe2 {[%clk 0:00:18.8]} 33. Rd7
{[%clk 0:01:41.6]} 33... Rxb2 {[%clk 0:00:18.7]} 34. Rxf7 {[%clk 0:01:41.4]}
34... a6 {[%clk 0:00:16.9]} 35. Ra7 {[%clk 0:01:41.7]} 35... Ra2 {[%clk
0:00:18.3]} 36. Rxa6 {[%clk 0:01:42.3]} 36... h5 {[%clk 0:00:16.5]} 37. b5
{[%clk 0:01:42.3]} 37... Rb2 {[%clk 0:00:14.1]} 38. b6 {[%clk 0:01:43.3]} 38...
Rb1+ {[%clk 0:00:12.6]} 39. Kh2 {[%clk 0:01:44.3]} 39... Rb3 {[%clk 0:00:12.8]}
40. a4 {[%clk 0:01:44.9]} 40... h4 {[%clk 0:00:12.1]} 41. a5 {[%clk 0:01:45.2]}
41... Rb5 {[%clk 0:00:12]} 42. Ra7 {[%clk 0:01:45.6]} 42... Kh6 {[%clk
0:00:09.2]} 43. b7 {[%clk 0:01:45.5]} 43... Kg5 {[%clk 0:00:06.8]} 44. a6 {[%clk
0:01:46.4]} 44... Ra5 {[%clk 0:00:06.4]} 45. Ra8 {[%clk 0:01:46.9]} 45... Rf5
{[%clk 0:00:05.7]} 46. b8=Q {[%clk 0:01:46.6]} 46... Rxf2 {[%clk 0:00:07.1]} 47.
Qd8+ {[%clk 0:01:47]} 47... Kf4 {[%clk 0:00:05.9]} 48. Qf8+ {[%clk 0:01:47.4]}
48... Ke3 {[%clk 0:00:06.3]} 49. Re8+ {[%clk 0:01:47.6]} 49... Kd2 {[%clk
0:00:04.7]} 50. Qd6+ {[%clk 0:01:48.6]} 50... Kc3 {[%clk 0:00:04.9]} 51. Rc8+
{[%clk 0:01:49.3]} 51... Kb2 {[%clk 0:00:05]} 52. Qb6+ {[%clk 0:01:48.8]} 52...
Ka1 {[%clk 0:00:06]} 53. Qxf2 {[%clk 0:01:48.2]} 53... Kb1 {[%clk 0:00:05.9]}
54. Re8 {[%clk 0:01:47.7]} 54... Kc1 {[%clk 0:00:05.9]} 55. Re1# {[%clk
0:01:49.5]} 1

[Event "Open Nuevo Centro. Jornada 2"]
[Site "Chess.com"]
[Date "2020.06.26"]
[Round "7"]
[White "Giaccio González, Alfredo Gustavo"]
[Black "Aguado, Pablo Luis"]
[Result "1-0"]
[WhiteElo "2354"]
[BlackElo "1802"]
[TimeControl "180+2"]
[EndTime "11:47:25 PDT"]
[Termination "Victoria de AGG2020 por abandono"]

1. e4 {[%clk 0:02:48]} 1... e5 {[%clk 0:02:56.7]} 2. Nf3 {[%clk 0:02:49]} 2...
Nf6 {[%clk 0:02:56.8]} 3. Nxe5 {[%clk 0:02:49]} 3... d6 {[%clk 0:02:58]} 4. Nf3
{[%clk 0:02:50.5]} 4... Nxe4 {[%clk 0:02:59]} 5. c4 {[%clk 0:02:52.3]} 5... c6
{[%clk 0:02:51]} 6. Nc3 {[%clk 0:02:53]} 6... Nxc3 {[%clk 0:02:51.2]} 7. dxc3
{[%clk 0:02:53.8]} 7... Be7 {[%clk 0:02:51.6]} 8. Bf4 {[%clk 0:02:51.2]} 8...
O-O {[%clk 0:02:51.4]} 9. Bd3 {[%clk 0:02:50.4]} 9... d5 {[%clk 0:02:51.3]} 10.
Qc2 {[%clk 0:02:44.3]} 10... g6 {[%clk 0:02:50.4]} 11. O-O-O {[%clk 0:02:43.8]}
11... Be6 {[%clk 0:02:40.5]} 12. Nd4 {[%clk 0:02:37.9]} 12... Nd7 {[%clk
0:02:18.9]} 13. Nxe6 {[%clk 0:02:07.7]} 13... fxe6 {[%clk 0:02:19.2]} 14. Bd2
{[%clk 0:02:06.5]} 14... Qe8 {[%clk 0:02:05]} 15. f3 {[%clk 0:02:04.2]} 15...
Nf6 {[%clk 0:02:02.1]} 16. Rhe1 {[%clk 0:02:03.6]} 16... Qf7 {[%clk 0:02:01.2]}
17. Bh6 {[%clk 0:01:59.2]} 17... Rfe8 {[%clk 0:01:59.6]} 18. Kb1 {[%clk
0:01:55]} 18... Bd6 {[%clk 0:01:59.4]} 19. g4 {[%clk 0:01:44.5]} 19... e5 {[%clk
0:01:56.9]} 20. cxd5 {[%clk 0:01:43.8]} 20... cxd5 {[%clk 0:01:56.2]} 21. Qb3
{[%clk 0:01:39.2]} 21... a5 {[%clk 0:01:37.3]} 22. a4 {[%clk 0:01:34.7]} 22...
Rad8 {[%clk 0:01:24.7]} 23. h4 {[%clk 0:01:32.8]} 23... Bf8 {[%clk 0:00:59.1]}
24. Bg5 {[%clk 0:01:24.4]} 24... Bg7 {[%clk 0:00:47.2]} 25. h5 {[%clk
0:01:17.1]} 25... gxh5 {[%clk 0:00:40.6]} 26. gxh5 {[%clk 0:01:17]} 26... Qxh5
{[%clk 0:00:40.9]} 27. Bxf6 {[%clk 0:01:04.1]} 27... Bxf6 {[%clk 0:00:40.4]} 28.
Rh1 {[%clk 0:01:06]} 28... Qxf3 {[%clk 0:00:39.3]} 29. Rxh7 {[%clk 0:00:56.4]}
29... e4 {[%clk 0:00:35.4]} 30. Bc2 {[%clk 0:00:14.7]} 30... Kxh7 {[%clk
0:00:34.9]} 31. Qxb7+ {[%clk 0:00:14.6]} 31... Re7 {[%clk 0:00:33.8]} 32. Qb6
{[%clk 0:00:15.1]} 32... Rg7 {[%clk 0:00:21.6]} 33. Qxa5 {[%clk 0:00:12.8]}
33... Rdg8 {[%clk 0:00:21.6]} 34. Qxd5 {[%clk 0:00:12.5]} 34... Rg4 {[%clk
0:00:18.9]} 35. Re1 {[%clk 0:00:12.6]} 35... Qg3 {[%clk 0:00:16]} 36. Bxe4+
{[%clk 0:00:13]} 36... Kg7 {[%clk 0:00:15.8]} 37. Rh1 {[%clk 0:00:13.2]} 37...
Rg5 {[%clk 0:00:13.6]} 38. Qd7+ {[%clk 0:00:12.4]} 38... Kf8 {[%clk 0:00:10.4]}
39. Bd5 {[%clk 0:00:12.6]} 39... R8g7 {[%clk 0:00:07.2]} 40. Rh8+ {[%clk
0:00:11.6]} 1

[Event "Open Nuevo Centro. Jornada 2"]
[Site "Chess.com"]
[Date "2020.06.26"]
[Round "7"]
[White "Martínez Carvajal, Juan Francisco"]
[Black "Donate Moreno, David"]
[Result "0-1"]
[WhiteElo "1738"]
[BlackElo "1532"]
[TimeControl "180+2"]
[EndTime "11:47:30 PDT"]
[Termination "Victoria de sylar48 por abandono"]

1. Nf3 {[%clk 0:03:01.9]} 1... d5 {[%clk 0:03:00.4]} 2. c4 {[%clk 0:03:01.3]}
2... c5 {[%clk 0:02:59.3]} 3. cxd5 {[%clk 0:02:59.1]} 3... Qxd5 {[%clk
0:02:59.5]} 4. Nc3 {[%clk 0:02:59.8]} 4... Qd8 {[%clk 0:02:59.4]} 5. g3 {[%clk
0:02:56]} 5... Nc6 {[%clk 0:02:59.9]} 6. Bg2 {[%clk 0:02:56.9]} 6... Bf5 {[%clk
0:03:00.1]} 7. O-O {[%clk 0:02:57.4]} 7... Nf6 {[%clk 0:02:57.3]} 8. Nh4 {[%clk
0:02:46.6]} 8... Bg6 {[%clk 0:02:52.2]} 9. Nxg6 {[%clk 0:02:46.6]} 9... hxg6
{[%clk 0:02:54.1]} 10. d3 {[%clk 0:02:36.5]} 10... Ng4 {[%clk 0:02:41.2]} 11. h3
{[%clk 0:02:27.9]} 11... Nf6 {[%clk 0:02:37]} 12. Be3 {[%clk 0:02:22.6]} 12...
e6 {[%clk 0:02:34.3]} 13. Rc1 {[%clk 0:02:18.2]} 13... Bd6 {[%clk 0:02:34.1]}
14. Nb5 {[%clk 0:02:12.6]} 14... Nd4 {[%clk 0:02:27.1]} 15. Bxb7 {[%clk
0:02:00]} 15... Nxb5 {[%clk 0:02:20.5]} 16. Bc6+ {[%clk 0:01:48.3]} 16... Ke7
{[%clk 0:02:18.7]} 17. Bxb5 {[%clk 0:01:48.1]} 17... Rb8 {[%clk 0:02:14.4]} 18.
Qa4 {[%clk 0:01:46.5]} 18... Rc8 {[%clk 0:02:01.6]} 19. Qxa7+ {[%clk 0:01:27.9]}
19... Rc7 {[%clk 0:02:00.6]} 20. Qb6 {[%clk 0:01:25.8]} 20... Rxh3 {[%clk
0:01:58.3]} 21. Bxc5 {[%clk 0:01:17.2]} 21... Bxc5 {[%clk 0:01:58.9]} 22. Rxc5
{[%clk 0:01:14.9]} 22... Rxc5 {[%clk 0:01:54.7]} 23. Qxc5+ {[%clk 0:01:15.1]}
23... Qd6 {[%clk 0:01:55.3]} 24. Qxd6+ {[%clk 0:01:10.9]} 24... Kxd6 {[%clk
0:01:57.2]} 25. Kg2 {[%clk 0:01:10.3]} 25... Rh5 {[%clk 0:01:57.6]} 26. a4
{[%clk 0:01:07.4]} 26... Nd5 {[%clk 0:01:49.8]} 27. Rc1 {[%clk 0:01:03.2]} 27...
Nc7 {[%clk 0:01:29.3]} 28. Rc6+ {[%clk 0:01:01.2]} 28... Kd7 {[%clk 0:01:28.9]}
29. Rc4+ {[%clk 0:00:11.5]} 29... Nxb5 {[%clk 0:01:28.8]} 30. axb5 {[%clk
0:00:12]} 30... Rxb5 {[%clk 0:01:30.7]} 31. b4 {[%clk 0:00:12.3]} 31... Ke7
{[%clk 0:01:31.5]} 32. Kf3 {[%clk 0:00:13.5]} 32... Kf6 {[%clk 0:01:32.1]} 33.
Ke4 {[%clk 0:00:14.7]} 33... Re5+ {[%clk 0:01:26.6]} 34. Kf3 {[%clk 0:00:15.4]}
34... Rf5+ {[%clk 0:01:25.9]} 35. Ke3 {[%clk 0:00:15.9]} 35... Rb5 {[%clk
0:01:26.3]} 36. d4 {[%clk 0:00:16.4]} 36... g5 {[%clk 0:01:21.2]} 37. g4 {[%clk
0:00:17.2]} 37... Kg6 {[%clk 0:01:21.8]} 38. Kd3 {[%clk 0:00:17.7]} 38... f5
{[%clk 0:01:22.1]} 39. gxf5+ {[%clk 0:00:17.7]} 39... exf5 {[%clk 0:01:22.6]}
40. Kc3 {[%clk 0:00:17.7]} 40... g4 {[%clk 0:01:22.5]} 41. Rc6+ {[%clk
0:00:18.2]} 41... Kg5 {[%clk 0:01:22.3]} 42. Kc4 {[%clk 0:00:19.5]} 42... Rb8
{[%clk 0:01:22.5]} 43. d5 {[%clk 0:00:20.6]} 43... f4 {[%clk 0:01:22.6]} 44. d6
{[%clk 0:00:20.7]} 44... g3 {[%clk 0:01:22.6]} 45. fxg3 {[%clk 0:00:21.7]} 45...
fxg3 {[%clk 0:01:23.1]} 46. d7 {[%clk 0:00:23.1]} 46... Rd8 {[%clk 0:01:23.2]}
47. Rc7 {[%clk 0:00:21.8]} 47... g2 {[%clk 0:01:18.9]} 48. Rc5+ {[%clk
0:00:21.3]} 48... Kg4 {[%clk 0:01:16.3]} 49. Rd5 {[%clk 0:00:21.5]} 49... g1=Q
{[%clk 0:01:12]} 50. Rd6 {[%clk 0:00:20.9]} 50... Qc1+ {[%clk 0:01:08.5]} 51.
Kd4 {[%clk 0:00:19.9]} 51... Rxd7 {[%clk 0:01:08]} 52. Rxd7 {[%clk 0:00:14.4]}
52... Qd1+ {[%clk 0:01:08.5]} 53. Kc5 {[%clk 0:00:15.8]} 53... Qxd7 {[%clk
0:01:10.2]} 54. b5 {[%clk 0:00:17.1]} 54... Qc7+ {[%clk 0:01:09.6]} 55. Kb4
{[%clk 0:00:17.2]} 55... Qb6 {[%clk 0:01:10.4]} 0

[Event "Open Nuevo Centro. Jornada 2"]
[Site "Chess.com"]
[Date "2020.06.26"]
[Round "7"]
[White "Randazzo, Adrián"]
[Black "Kovacevic, Slobodan"]
[Result "1-0"]
[WhiteElo "2472"]
[BlackElo "2112"]
[TimeControl "180+2"]
[EndTime "11:47:37 PDT"]
[Termination "Victoria de Nikithebest por tiempo"]

1. e4 {[%clk 0:03:01.9]} 1... c5 {[%clk 0:02:58.3]} 2. Nf3 {[%clk 0:03:03.1]}
2... e6 {[%clk 0:02:57.7]} 3. d3 {[%clk 0:03:04.5]} 3... Nc6 {[%clk 0:02:56.3]}
4. g3 {[%clk 0:03:05.8]} 4... d6 {[%clk 0:02:55.7]} 5. Bg2 {[%clk 0:03:04.7]}
5... Nf6 {[%clk 0:02:55.8]} 6. O-O {[%clk 0:03:05.4]} 6... Qc7 {[%clk 0:02:55]}
7. Nc3 {[%clk 0:03:03]} 7... Be7 {[%clk 0:02:54.2]} 8. d4 {[%clk 0:03:04.5]}
8... cxd4 {[%clk 0:02:53.1]} 9. Nxd4 {[%clk 0:03:06.4]} 9... Bd7 {[%clk
0:02:51.4]} 10. Ndb5 {[%clk 0:03:05.6]} 10... Qb8 {[%clk 0:02:50.5]} 11. Bf4
{[%clk 0:03:02.7]} 11... Ne5 {[%clk 0:02:49]} 12. Bg5 {[%clk 0:03:02.1]} 12...
a6 {[%clk 0:02:43.7]} 13. Bxf6 {[%clk 0:03:01]} 13... gxf6 {[%clk 0:02:42.3]}
14. Nd4 {[%clk 0:03:00.5]} 14... Qc7 {[%clk 0:02:39.5]} 15. a4 {[%clk 0:02:57]}
15... h5 {[%clk 0:02:36.6]} 16. h4 {[%clk 0:02:56]} 16... Rc8 {[%clk 0:02:33.6]}
17. Nce2 {[%clk 0:02:53.4]} 17... b5 {[%clk 0:02:30.1]} 18. axb5 {[%clk
0:02:52]} 18... axb5 {[%clk 0:02:28.6]} 19. c3 {[%clk 0:02:50.5]} 19... Ng6
{[%clk 0:02:21.2]} 20. Nc2 {[%clk 0:02:49.5]} 20... Kf8 {[%clk 0:02:16.8]} 21.
Nb4 {[%clk 0:02:51.1]} 21... Kg7 {[%clk 0:02:14.8]} 22. f4 {[%clk 0:02:43.3]}
22... Rcg8 {[%clk 0:02:06.9]} 23. Kh2 {[%clk 0:02:42.1]} 23... Rh7 {[%clk
0:02:02.1]} 24. Ra6 {[%clk 0:02:41.5]} 24... Kh8 {[%clk 0:01:54.6]} 25. Qd3
{[%clk 0:02:32.2]} 25... Rhg7 {[%clk 0:01:48.8]} 26. Rfa1 {[%clk 0:02:28.6]}
26... Nxh4 {[%clk 0:01:47]} 27. Ra7 {[%clk 0:02:24.4]} 27... Qd8 {[%clk
0:01:44.2]} 28. Ra8 {[%clk 0:02:23.8]} 28... Qb6 {[%clk 0:01:37]} 29. Rxg8+
{[%clk 0:02:17.7]} 29... Rxg8 {[%clk 0:01:34.6]} 30. gxh4 {[%clk 0:02:19]} 30...
Qf2 {[%clk 0:01:32.2]} 31. Qf3 {[%clk 0:02:20.2]} 31... Qxh4+ {[%clk 0:01:28.7]}
32. Qh3 {[%clk 0:02:21.6]} 32... Qf2 {[%clk 0:01:25.3]} 33. Qxh5+ {[%clk
0:02:16]} 33... Kg7 {[%clk 0:01:23.8]} 34. Qg4+ {[%clk 0:01:56.4]} 34... Kh7
{[%clk 0:01:22.6]} 35. Qf3 {[%clk 0:01:45.5]} 35... Qc5 {[%clk 0:01:20.2]} 36.
Nd3 {[%clk 0:01:41.2]} 36... Qb6 {[%clk 0:01:17.1]} 37. f5 {[%clk 0:01:39.3]}
37... e5 {[%clk 0:01:12.9]} 38. Nb4 {[%clk 0:01:34.4]} 38... Bc6 {[%clk
0:01:10.4]} 39. Nxc6 {[%clk 0:01:33.7]} 39... Qxc6 {[%clk 0:01:09.2]} 40. Ra7
{[%clk 0:01:29.8]} 40... Qe8 {[%clk 0:01:06.6]} 41. Ng3 {[%clk 0:01:27.9]} 41...
Rh8 {[%clk 0:00:58.9]} 42. Kg1 {[%clk 0:01:25.5]} 42... d5 {[%clk 0:00:54.7]}
43. Nh5 {[%clk 0:01:16.5]} 43... Rg8 {[%clk 0:00:41.5]} 44. Qh3 {[%clk
0:01:05.8]} 44... Qd8 {[%clk 0:00:25.5]} 45. Nxf6+ {[%clk 0:01:04.1]} 45... Kg7
{[%clk 0:00:23.8]} 46. Nxg8 {[%clk 0:01:05.2]} 46... Bc5+ {[%clk 0:00:19]} 47.
Kh2 {[%clk 0:01:02.2]} 47... Bxa7 {[%clk 0:00:18.3]} 48. Qg4+ {[%clk 0:01:00.8]}
48... Kh7 {[%clk 0:00:14.5]} 49. f6 {[%clk 0:00:59.6]} 49... Qf8 {[%clk
0:00:04.1]} 50. exd5 {[%clk 0:00:49.8]} 1

[Event "Open Nuevo Centro. Jornada 2"]
[Site "Chess.com"]
[Date "2020.06.26"]
[Round "7"]
[White "Segarra Martinez, Axel"]
[Black "Lloret Ramis, Juan José"]
[Result "1-0"]
[WhiteElo "2216"]
[BlackElo "1984"]
[TimeControl "180+2"]
[EndTime "11:47:40 PDT"]
[Termination "Victoria de Alejandrosky por abandono"]

1. e4 {[%clk 0:03:01.9]} 1... e6 {[%clk 0:03:01]} 2. d4 {[%clk 0:03:02.8]} 2...
d5 {[%clk 0:03:02.4]} 3. Nd2 {[%clk 0:03:04.3]} 3... Nf6 {[%clk 0:03:00.7]} 4.
e5 {[%clk 0:03:05.1]} 4... Ne4 {[%clk 0:03:01.8]} 5. c3 {[%clk 0:03:07]} 5...
Nxd2 {[%clk 0:02:59.4]} 6. Bxd2 {[%clk 0:03:08.9]} 6... c5 {[%clk 0:03:00]} 7.
f4 {[%clk 0:03:09.9]} 7... Nc6 {[%clk 0:03:01.1]} 8. Nf3 {[%clk 0:03:11.1]} 8...
Qb6 {[%clk 0:03:01.5]} 9. Qb3 {[%clk 0:03:09.3]} 9... c4 {[%clk 0:02:47.7]} 10.
Qxb6 {[%clk 0:03:08.5]} 10... axb6 {[%clk 0:02:49.2]} 11. a3 {[%clk 0:03:09.6]}
11... b5 {[%clk 0:02:49.6]} 12. Rd1 {[%clk 0:03:07.6]} 12... Be7 {[%clk
0:02:37.7]} 13. Be2 {[%clk 0:02:59.5]} 13... Bd7 {[%clk 0:02:32.5]} 14. O-O
{[%clk 0:02:59.1]} 14... O-O-O {[%clk 0:02:28.9]} 15. g4 {[%clk 0:02:57.8]}
15... f6 {[%clk 0:02:21.9]} 16. Kg2 {[%clk 0:02:50]} 16... Be8 {[%clk
0:02:16.2]} 17. f5 {[%clk 0:02:38.9]} 17... exf5 {[%clk 0:02:10.6]} 18. gxf5
{[%clk 0:02:40.8]} 18... g6 {[%clk 0:02:10.8]} 19. fxg6 {[%clk 0:02:28.5]} 19...
Bxg6 {[%clk 0:02:01.1]} 20. exf6 {[%clk 0:02:15.8]} 20... Bxf6 {[%clk
0:01:58.8]} 21. Ng5 {[%clk 0:02:16.5]} 21... Bxg5 {[%clk 0:01:47.3]} 22. Bg4+
{[%clk 0:02:09.6]} 22... Kc7 {[%clk 0:01:37.8]} 23. Bxg5 {[%clk 0:02:10.9]}
23... Be4+ {[%clk 0:01:37.9]} 24. Kh3 {[%clk 0:02:09.2]} 24... Rdg8 {[%clk
0:01:30.3]} 25. Rf7+ {[%clk 0:02:08.9]} 25... Kb6 {[%clk 0:01:30.5]} 26. Kh4
{[%clk 0:01:44]} 26... h6 {[%clk 0:01:17]} 27. Bf6 {[%clk 0:01:42]} 27... Rf8
{[%clk 0:01:11.5]} 28. Rxf8 {[%clk 0:01:36.7]} 28... Rxf8 {[%clk 0:01:11.7]} 29.
Rf1 {[%clk 0:01:37]} 29... Ne7 {[%clk 0:00:50.2]} 30. Bh3 {[%clk 0:01:14.5]}
30... Nf5+ {[%clk 0:00:27.2]} 31. Bxf5 {[%clk 0:01:05.4]} 31... Rxf6 {[%clk
0:00:26.9]} 32. Bh3 {[%clk 0:01:06.8]} 32... Rg6 {[%clk 0:00:18]} 33. Kh5 {[%clk
0:00:56.4]} 33... Kc6 {[%clk 0:00:15.7]} 34. Rf7 {[%clk 0:00:40.5]} 34... Kb6
{[%clk 0:00:15.4]} 35. Bc8 {[%clk 0:00:31.6]} 35... Rg2 {[%clk 0:00:13]} 36.
Rxb7+ {[%clk 0:00:32.9]} 36... Ka5 {[%clk 0:00:14.1]} 37. h4 {[%clk 0:00:21.4]}
37... Rxb2 {[%clk 0:00:10.5]} 38. Bd7 {[%clk 0:00:18]} 38... Rb3 {[%clk
0:00:10.6]} 39. Kxh6 {[%clk 0:00:18.3]} 39... Rxc3 {[%clk 0:00:09.9]} 40. Rxb5+
{[%clk 0:00:18.1]} 40... Ka6 {[%clk 0:00:11.2]} 41. a4 {[%clk 0:00:18.1]} 41...
Rh3 {[%clk 0:00:11.2]} 42. h5 {[%clk 0:00:19.3]} 42... c3 {[%clk 0:00:12.3]} 43.
Rc5 {[%clk 0:00:19.2]} 43... c2 {[%clk 0:00:12.5]} 44. Bxh3 {[%clk 0:00:19.9]}
1

[Event "Open Nuevo Centro. Jornada 2"]
[Site "Chess.com"]
[Date "2020.06.26"]
[Round "7"]
[White "Birnoveanu, Petru"]
[Black "Denis Cazacu, Ioan"]
[Result "1-0"]
[WhiteElo "1689"]
[BlackElo "1394"]
[TimeControl "180+2"]
[EndTime "11:48:01 PDT"]
[Termination "Victoria de piculet por abandono"]

1. e4 {[%clk 0:03:01.9]} 1... c5 {[%clk 0:03:00.1]} 2. c4 {[%clk 0:03:01.5]}
2... Nc6 {[%clk 0:03:00.4]} 3. Nc3 {[%clk 0:03:01.9]} 3... g6 {[%clk 0:03:01.9]}
4. d3 {[%clk 0:03:02.3]} 4... Bg7 {[%clk 0:03:03.4]} 5. f4 {[%clk 0:03:03.9]}
5... e5 {[%clk 0:03:02.9]} 6. Nge2 {[%clk 0:03:02.6]} 6... Nf6 {[%clk
0:02:55.6]} 7. fxe5 {[%clk 0:03:01.5]} 7... Nxe5 {[%clk 0:02:57.5]} 8. Bf4
{[%clk 0:03:02]} 8... Nc6 {[%clk 0:02:51.8]} 9. Nd5 {[%clk 0:03:00.5]} 9... Nxd5
{[%clk 0:02:50]} 10. exd5 {[%clk 0:03:01]} 10... Nd4 {[%clk 0:02:49.7]} 11. Nxd4
{[%clk 0:02:58.3]} 11... Bxd4 {[%clk 0:02:51.6]} 12. Be2 {[%clk 0:02:57.1]}
12... Bxb2 {[%clk 0:02:51.4]} 13. Rb1 {[%clk 0:02:55.3]} 13... Bc3+ {[%clk
0:02:49.9]} 14. Bd2 {[%clk 0:02:55.9]} 14... Bxd2+ {[%clk 0:02:47.7]} 15. Qxd2
{[%clk 0:02:56.2]} 15... O-O {[%clk 0:02:47.1]} 16. O-O {[%clk 0:02:56]} 16...
d6 {[%clk 0:02:42.5]} 17. Qf4 {[%clk 0:02:53.7]} 17... Bf5 {[%clk 0:02:37.2]}
18. g4 {[%clk 0:02:49]} 18... Bd7 {[%clk 0:02:37.8]} 19. Rf2 {[%clk 0:02:46.9]}
19... Ba4 {[%clk 0:02:35.4]} 20. Rbf1 {[%clk 0:02:44.8]} 20... a6 {[%clk
0:02:33.1]} 21. g5 {[%clk 0:02:33.7]} 21... b5 {[%clk 0:02:31.1]} 22. Qg3 {[%clk
0:02:23.8]} 22... bxc4 {[%clk 0:02:18.1]} 23. dxc4 {[%clk 0:02:19.3]} 23... Ra7
{[%clk 0:02:17.4]} 24. Rf6 {[%clk 0:02:17.4]} 24... Re7 {[%clk 0:01:58.5]} 25.
Rxd6 {[%clk 0:02:05.8]} 25... Qb8 {[%clk 0:01:58.5]} 26. Rf2 {[%clk 0:01:48.2]}
26... Rfe8 {[%clk 0:01:53]} 27. Bf1 {[%clk 0:01:39.3]} 27... Re3 {[%clk
0:01:45.9]} 28. Qf4 {[%clk 0:01:35.6]} 28... R3e7 {[%clk 0:01:30]} 29. Qf6
{[%clk 0:01:30.7]} 29... Qc8 {[%clk 0:01:11.3]} 30. Rxa6 {[%clk 0:01:20.8]}
30... Qg4+ {[%clk 0:01:11.3]} 31. Rg2 {[%clk 0:01:18.8]} 31... Qd1 {[%clk
0:01:02.1]} 32. d6 {[%clk 0:01:13.1]} 32... Re1 {[%clk 0:01:00.5]} 33. Rf2
{[%clk 0:01:07.8]} 33... Rf8 {[%clk 0:00:48.3]} 34. Qf3 {[%clk 0:00:53.9]} 34...
Qc1 {[%clk 0:00:35]} 35. Rxa4 {[%clk 0:00:51.5]} 35... Qxg5+ {[%clk 0:00:34.5]}
36. Qg2 {[%clk 0:00:49.2]} 36... Qe5 {[%clk 0:00:25.3]} 37. Qd5 {[%clk
0:00:43.6]} 37... Qxd5 {[%clk 0:00:17.1]} 38. cxd5 {[%clk 0:00:43.7]} 38... Rd8
{[%clk 0:00:18.5]} 39. Ra6 {[%clk 0:00:42.5]} 39... Rd1 {[%clk 0:00:17.9]} 40.
Kg2 {[%clk 0:00:34]} 40... Rxd5 {[%clk 0:00:18.5]} 41. Bc4 {[%clk 0:00:34.7]}
41... R5xd6 {[%clk 0:00:19.8]} 42. Rxd6 {[%clk 0:00:34.3]} 42... Rxd6 {[%clk
0:00:21.7]} 43. Bxf7+ {[%clk 0:00:35]} 43... Kg7 {[%clk 0:00:22.2]} 44. Bc4
{[%clk 0:00:35.1]} 44... Rd4 {[%clk 0:00:21.8]} 45. Rc2 {[%clk 0:00:35.5]} 45...
Rg4+ {[%clk 0:00:22]} 46. Kf3 {[%clk 0:00:35]} 46... Rd4 {[%clk 0:00:21.1]} 47.
Bb3 {[%clk 0:00:32.8]} 47... Rd3+ {[%clk 0:00:22.1]} 48. Ke4 {[%clk 0:00:33.4]}
48... Rh3 {[%clk 0:00:22.1]} 49. Kd5 {[%clk 0:00:32.7]} 49... Rh5+ {[%clk
0:00:22.8]} 50. Kc4 {[%clk 0:00:33.1]} 50... Rh4+ {[%clk 0:00:21.1]} 51. Kxc5
{[%clk 0:00:33.3]} 51... Rf4 {[%clk 0:00:19.9]} 52. Bd5 {[%clk 0:00:32.7]} 52...
Rf8 {[%clk 0:00:21]} 53. a4 {[%clk 0:00:31.8]} 53... Rc8+ {[%clk 0:00:22.1]} 54.
Bc6 {[%clk 0:00:32.4]} 54... Kf6 {[%clk 0:00:20.5]} 55. Re2 {[%clk 0:00:32.1]}
55... Ra8 {[%clk 0:00:20.6]} 1